bitfinex/quotes_BTCUSD_20210101
["timestamp","ask_amount","ask_price","bid_price","bid_amount"]
[1609493930223,1.77118283,29260.0,29259.0,1.63626282]
[1609493930425,1.76458283,29260.0,29259.0,1.68626282]
[1609493930625,1.76458283,29260.0,29259.0,0.68626282]
[1609493930927,1.06647706,29260.0,29259.0,0.68626282]
[1609493931226,1.06617706,29260.0,29259.0,0.68626282]
[1609493931428,0.43351917,29260.0,29259.0,0.32141582]
[1609493931631,0.58750117,29260.0,29259.0,0.14141582]
[1609493931831,0.58750117,29260.0,29258.0,0.14141582]
[1609493932030,0.43351917,29260.0,29258.0,0.14141582]
[1609493932230,0.153982,29259.0,29258.0,0.14141582]
[1609493932508,1.238982,29259.0,29258.0,0.14141582]
[1609493932666,0.67023934,29259.0,29258.0,0.14141582]
[1609493932869,0.43351917,29260.0,29257.0,0.14141582]
[1609493933067,0.42671917,29260.0,29257.0,0.14141582]
[1609493933568,0.48539359,29266.0,29257.0,0.14141582]
[1609493933769,0.48539359,29266.0,29265.0,0.30029131]
[1609493933973,4.15139359,29266.0,29265.0,0.40289475]
[1609493934170,4.15139359,29266.0,29265.0,0.30029131]
[1609493936498,4.95139359,29266.0,29265.0,0.30029131]
[1609493936704,4.15139359,29266.0,29265.0,0.30029131]
[1609493937004,4.00139359,29266.0,29265.0,0.30029131]
[1609493937200,3.94689359,29266.0,29265.0,0.30029131]
[1609493937403,9.29689359,29266.0,29265.0,0.30029131]
[1609493937606,3.94689359,29266.0,29265.0,0.30029131]
[1609493939333,3.6662,29266.0,29265.0,0.30029131]
[1609493939529,7.7662,29266.0,29265.0,0.26529131]
[1609493939932,7.76640992,29266.0,29265.0,0.26529131]
[1609493940133,3.66640992,29266.0,29265.0,0.26529131]
[1609493940633,6.39710351,29266.0,29265.0,0.26529131]
[1609493940833,6.11640992,29266.0,29265.0,0.26529131]
[1609493941033,3.79710351,29266.0,29265.0,0.26529131]
[1609493941531,5.44710351,29266.0,29265.0,0.26529131]
[1609493942531,3.79710351,29266.0,29265.0,0.26529131]
[1609493942732,3.78856692,29266.0,29265.0,0.2738335]
[1609493943332,5.68856692,29266.0,29265.0,0.2738335]
[1609493943531,3.78856692,29266.0,29265.0,0.2738335]
[1609493943959,3.78856692,29266.0,29265.0,0.00854219]
[1609493944359,3.68856692,29266.0,29265.0,0.00854219]
[1609493945864,3.68856692,29266.0,29263.0,0.33088689]
[1609493946065,0.63615785,29265.0,29263.0,0.33088689]
[1609493946263,3.82375785,29265.0,29263.0,0.33088689]
[1609493946664,6.61829359,29264.0,29263.0,0.33088689]
[1609493946864,6.5976,29264.0,29263.0,0.33068689]
[1609493947642,6.87829359,29264.0,29263.0,0.33068689]
[1609493947843,6.87829359,29264.0,29263.0,0.00834219]
[1609493947844,8.37829359,29264.0,29263.0,0.00834219]
[1609493948538,5.22829359,29264.0,29263.0,0.00834219]
[1609493948742,3.4476,29264.0,29263.0,0.00834219]
[1609493948942,3.4476,29264.0,29260.0,0.10834219]
[1609493949141,0.26,29263.0,29260.0,0.10834219]
[1609493949343,3.4476,29263.0,29260.0,0.10834219]
[1609493949757,0.26,29263.0,29260.0,0.10834219]
[1609493949956,3.1876,29262.0,29260.0,0.10834219]
[1609493950255,5.11,29261.0,29260.0,0.10834219]
[1609493950454,5.105,29261.0,29260.0,0.10834219]
[1609493951059,0.2506,29261.0,29260.0,0.10834219]
[1609493951258,3.1876,29261.0,29260.0,0.10834219]
[1609493951461,4.25,29260.0,29258.0,0.18599045]
[1609493951660,4.2498,29260.0,29258.0,0.18599045]
[1609493951861,2.955,29259.0,29258.0,0.18599045]
[1609493952161,5.8868,29259.0,29258.0,0.18599045]
[1609493952363,2.7,29259.0,29258.0,0.18599045]
[1609493952562,6.1418,29259.0,29258.0,0.18599045]
[1609493952960,2.955,29259.0,29258.0,0.18599045]
[1609493953192,6.1418,29259.0,29258.0,0.18599045]
[1609493953560,2.8462,29259.0,29258.0,0.18599045]
[1609493953763,6.033,29259.0,29258.0,0.18599045]
[1609493953959,2.8462,29259.0,29258.0,0.18599045]
[1609493954663,6.033,29259.0,29258.0,0.18599045]
[1609493954865,3.4418,29259.0,29258.0,0.18599045]
[1609493955095,0.255,29259.0,29258.0,0.66179288]
[1609493955291,3.1868,29259.0,29258.0,0.66179288]
[1609493955493,0.12207,29260.0,29258.0,0.66179288]
[1609493955795,5.36749359,29259.0,29258.0,0.8032087]
[1609493955994,5.36749359,29259.0,29258.0,0.61721825]
[1609493955995,7.12249359,29259.0,29258.0,0.61721825]
[1609493956196,9.52249359,29259.0,29258.0,0.14141582]
[1609493956894,7.12249359,29259.0,29258.0,0.14141582]
[1609493957197,7.12249359,29259.0,29257.0,0.61774877]
[1609493957397,7.93569359,29258.0,29257.0,0.14141582]
[1609493957592,11.33457359,29258.0,29257.0,0.14141582]
[1609493958393,11.33457359,29258.0,29256.0,0.83697102]
[1609493958591,7.655,29257.0,29256.0,0.83697102]
[1609493958829,10.8168,29257.0,29256.0,0.83697102]
[1609493959036,11.09749359,29257.0,29256.0,0.83697102]
[1609493959231,10.8131,29257.0,29256.0,0.83697102]
[1609493959433,11.09379359,29257.0,29256.0,0.83697102]
[1609493959640,11.08879359,29257.0,29256.0,0.2193]
[1609493960233,11.07879359,29257.0,29256.0,0.2193]
[1609493960534,6.07879359,29257.0,29256.0,0.2193]
[1609493960736,6.06879359,29257.0,29256.0,0.2193]
[1609493961339,9.01879359,29257.0,29252.0,0.47647765]
[1609493961638,1.5,29255.0,29252.0,0.46647765]
[1609493961837,1.78069359,29255.0,29252.0,0.46647765]
[1609493962039,7.4,29253.0,29252.0,0.46647765]
[1609493962436,10.5868,29253.0,29252.0,0.46647765]
[1609493962678,10.5868,29253.0,29252.0,0.46147765]
[1609493962878,10.5868,29253.0,29249.0,0.1462]
[1609493963082,10.5868,29253.0,29247.0,0.2193]
[1609493963279,3.1868,29252.0,29247.0,0.2193]
[1609493963582,3.43337,29252.0,29247.0,0.2183]
[1609493963984,3.46749359,29251.0,29247.0,0.2183]
[1609493964189,1.78069359,29250.0,29247.0,0.2183]
[1609493964386,0.28069359,29249.0,29247.0,0.2183]
[1609493964624,7.4,29248.0,29247.0,0.2183]
[1609493964820,10.86749359,29248.0,29247.0,0.2183]
[1609493965021,11.86749359,29248.0,29247.0,0.2183]
[1609493965222,11.97261359,29248.0,29247.0,0.2183]
[1609493965425,11.97261359,29248.0,29247.0,0.2133]
[1609493965619,12.33670289,29248.0,29247.0,0.2133]
[1609493965820,11.97261359,29248.0,29247.0,0.2133]
[1609493966522,11.75346659,29248.0,29247.0,0.2133]
[1609493967023,12.11755589,29248.0,29247.0,0.2133]
[1609493967221,12.19755589,29248.0,29245.0,0.1316]
[1609493967524,1.5,29246.0,29245.0,0.1316]
[1609493967721,1.99729359,29246.0,29245.0,0.1316]
[1609493968019,5.26409359,29246.0,29245.0,0.1316]
[1609493970643,4.9834,29246.0,29245.0,0.1316]
[1609493970849,4.9034,29246.0,29245.0,0.1316]
[1609493971349,3.4034,29246.0,29245.0,0.1316]
[1609493973745,4.9034,29246.0,29245.0,0.1316]
[1609493975266,3.4034,29246.0,29245.0,0.1316]
[1609493975567,5.18409359,29246.0,29245.0,0.1316]
[1609493976265,5.26409359,29246.0,29245.0,0.1316]
[1609493976972,3.4834,29246.0,29245.0,0.1316]
[1609493977469,4.9834,29246.0,29245.0,0.1316]
[1609493978620,4.9834,29246.0,29245.0,0.1116]
[1609493978820,4.9834,29246.0,29244.0,0.22441582]
[1609493978821,5.26409359,29246.0,29244.0,0.22441582]
[1609493979019,8.4,29245.0,29244.0,0.22441582]
[1609493979220,11.5868,29245.0,29244.0,0.22441582]
[1609493979421,5.6868,29245.0,29244.0,0.21941582]
[1609493979850,5.6868,29245.0,29244.0,0.078]
[1609493980153,4.2668,29245.0,29244.0,0.078]
[1609493980349,4.1868,29245.0,29244.0,0.078]
[1609493982050,3.1868,29245.0,29244.0,0.078]
[1609493982449,3.1868,29247.0,29244.0,0.078]
[1609493982654,3.1868,29245.0,29244.0,0.078]
[1609493983382,1.0,29246.0,29244.0,0.078]
[1609493983782,3.1868,29245.0,29244.0,0.078]
[1609493984184,3.2668,29245.0,29244.0,0.078]
[1609493984987,5.0668,29245.0,29244.0,0.078]
[1609493985284,3.1868,29245.0,29244.0,0.078]
[1609493985483,3.2668,29245.0,29244.0,0.078]
[1609493985883,4.9168,29245.0,29244.0,0.078]
[1609493986484,3.2668,29245.0,29244.0,0.078]
[1609493986886,4.2668,29245.0,29244.0,0.078]
[1609493987287,3.2668,29245.0,29244.0,0.21941582]
[1609493987490,3.2668,29245.0,29244.0,0.5378699]
[1609493988092,3.2668,29245.0,29244.0,0.64139847]
[1609493988692,3.2668,29245.0,29244.0,0.5378699]
[1609493988905,7.2168,29245.0,29244.0,0.0741265]
[1609493989106,7.2168,29245.0,29243.0,0.45995765]
[1609493989307,3.2668,29245.0,29243.0,0.45995765]
[1609493989510,5.4868,29244.0,29243.0,0.14141582]
[1609493989714,3.1868,29244.0,29243.0,0.24390153]
[1609493990109,3.1868,29244.0,29243.0,0.10248571]
[1609493990809,4.5368,29244.0,29243.0,0.10248571]
[1609493991110,1.35,29244.0,29243.0,0.10248571]
[1609493991313,1.35,29244.0,29240.0,0.17141582]
[1609493991609,4.5368,29244.0,29240.0,0.17141582]
[1609493992315,1.35,29244.0,29240.0,0.27296813]
[1609493992510,1.35,29244.0,29240.0,0.13155231]
[1609493992759,3.1868,29243.0,29240.0,0.13155231]
[1609493992959,3.2668,29243.0,29240.0,0.13155231]
[1609493993358,3.1868,29242.0,29240.0,0.03]
[1609493994357,3.1868,29242.0,29240.0,0.13131633]
[1609493995600,3.1868,29242.0,29240.0,0.03]
[1609493995905,3.1868,29242.0,29240.0,0.025]
[1609493997399,3.1868,29242.0,29240.0,0.12839909]
[1609493998001,3.1789,29242.0,29240.0,0.025]
[1609493998329,0.08,29243.0,29240.0,0.025]
[1609493998330,3.1773,29241.0,29240.0,0.025]
[1609493998730,3.1773,29242.0,29240.0,0.74430641]
[1609493998932,0.08,29243.0,29241.0,0.91930641]
[1609493999129,0.08,29243.0,29242.0,0.85930641]
[1609493999327,0.08,29243.0,29242.0,1.05930641]
[1609493999527,3.2573,29243.0,29242.0,1.05930641]
[1609493999830,3.2573,29243.0,29242.0,0.34]
[1609494000028,3.2573,29243.0,29240.0,0.225]
[1609494000231,3.4573,29243.0,29240.0,0.74430641]
[1609494000433,3.1773,29242.0,29240.0,0.1290352]
[1609494001031,3.1773,29242.0,29240.0,0.84834161]
[1609494001438,3.1773,29242.0,29241.0,0.71930641]
[1609494001631,3.1773,29242.0,29241.0,0.86430641]
[1609494001830,3.1773,29243.0,29241.0,0.86430641]
[1609494002065,3.1773,29243.0,29242.0,0.81930641]
[1609494002236,0.66,29244.0,29242.0,1.21930641]
[1609494002532,1.28937411,29248.0,29243.0,6.85405541]
[1609494002734,1.28937411,29248.0,29244.0,1.02194249]
[1609494002933,1.28937411,29248.0,29245.0,1.01930641]
[1609494003133,1.28937411,29248.0,29246.0,0.91930641]
[1609494003332,0.00237411,29248.0,29247.0,2.86930641]
[1609494003540,0.00237411,29248.0,29247.0,1.21930641]
[1609494003731,1.17021916,29252.0,29248.0,2.61930641]
[1609494003943,1.16804732,29252.0,29249.0,1.37430641]
[1609494004146,3.1773,29251.0,29250.0,0.71930641]
[1609494004354,3.17686551,29251.0,29249.0,0.91930641]
[1609494004543,3.17686551,29251.0,29250.0,0.2]
[1609494004748,3.1769,29250.0,29249.0,0.71930641]
[1609494004946,3.1769,29250.0,29249.0,0.09107602]
[1609494005145,3.1769,29253.0,29249.0,0.09107602]
[1609494005443,3.1769,29250.0,29249.0,0.09107602]
[1609494005848,3.1769,29252.0,29249.0,0.09107602]
[1609494006049,3.1769,29250.0,29249.0,0.09107602]
[1609494006257,5.0,29254.0,29249.0,0.29107602]
[1609494006452,3.1605,29250.0,29249.0,0.09107602]
[1609494006653,3.1605,29253.0,29248.0,0.29107602]
[1609494006856,3.1605,29250.0,29249.0,0.09107602]
[1609494007052,3.1605,29250.0,29248.0,0.09107602]
[1609494007255,3.1605,29252.0,29245.0,0.09107602]
[1609494007456,3.1355,29249.0,29244.0,0.29107602]
[1609494007738,3.1355,29249.0,29242.0,0.24141582]
[1609494007897,5.08,29254.0,29242.0,0.53249184]
[1609494008094,3.1355,29248.0,29242.0,0.43249184]
[1609494008302,3.1355,29250.0,29242.0,0.23249184]
[1609494008496,0.6,29252.0,29241.0,0.34141582]
[1609494008699,3.1355,29247.0,29242.0,0.09107602]
[1609494008996,3.7355,29252.0,29241.0,0.14141582]
[1609494008997,0.9640893,29252.0,29241.0,0.14141582]
[1609494009196,3.1355,29246.0,29241.0,0.23249184]
[1609494009393,3.1355,29251.0,29241.0,0.09107602]
[1609494009641,3.1355,29245.0,29241.0,0.09107602]
[1609494009838,3.1355,29250.0,29241.0,0.09107602]
[1609494010143,3.1355,29244.0,29241.0,0.09107602]
[1609494010340,3.1355,29249.0,29240.0,0.37096855]
[1609494010540,0.6,29252.0,29241.0,0.09107602]
[1609494010743,3.1355,29243.0,29241.0,0.09107602]
[1609494011039,0.08,29248.0,29241.0,0.09107602]
[1609494011241,0.08,29248.0,29241.0,0.03559472]
[1609494011443,3.1355,29242.0,29241.0,0.12667074]
[1609494011643,3.1355,29247.0,29241.0,0.12667074]
[1609494011841,3.1355,29247.0,29242.0,0.09107602]
[1609494012144,3.1355,29246.0,29243.0,0.1]
[1609494012345,3.1355,29246.0,29244.0,0.09107602]
[1609494012640,0.6,29252.0,29244.0,0.1925016]
[1609494012841,0.6,29252.0,29245.0,0.09107602]
[1609494013145,3.1355,29251.0,29245.0,0.09107602]
[1609494013356,3.1355,29251.0,29244.0,0.1925016]
[1609494014659,3.1355,29251.0,29244.0,0.10142558]
[1609494015658,3.1355,29251.0,29242.0,0.47760452]
[1609494015856,3.1355,29251.0,29242.0,0.56368054]
[1609494016061,0.08,29250.0,29243.0,0.145]
[1609494016463,3.1355,29249.0,29243.0,0.145]
[1609494016663,3.1355,29249.0,29243.0,0.24871677]
[1609494016860,3.1355,29249.0,29243.0,0.10371677]
[1609494017062,3.1355,29249.0,29243.0,0.24513259]
[1609494017860,3.1355,29249.0,29243.0,0.33620861]
[1609494018059,3.1355,29249.0,29243.0,0.24513259]
[1609494019383,3.1355,29249.0,29243.0,0.14141582]
[1609494019585,3.1355,29249.0,29242.0,0.03559467]
[1609494019785,3.1355,29249.0,29242.0,0.12667069]
[1609494019986,3.1355,29249.0,29243.0,0.09107602]
[1609494021088,3.12871005,29249.0,29243.0,0.09107602]
[1609494021592,3.12871005,29249.0,29243.0,0.33520324]
[1609494021593,3.12735131,29249.0,29243.0,0.33520324]
[1609494021791,3.12735131,29249.0,29244.0,0.09107602]
[1609494022088,3.1274,29248.0,29244.0,0.09107602]
[1609494022288,0.660534,29250.0,29244.0,0.09107602]
[1609494022491,3.1271,29247.0,29244.0,0.23251023]
[1609494022765,3.1271,29247.0,29245.0,0.09107602]
[1609494023033,3.1271,29246.0,29244.0,0.23251023]
[1609494023529,3.1271,29248.0,29244.0,0.23251023]
[1609494023730,3.1271,29245.0,29244.0,0.23251023]
[1609494023932,3.1271,29245.0,29244.0,0.09107602]
[1609494024134,3.1271,29247.0,29243.0,0.22938176]
[1609494024329,3.1271,29247.0,29243.0,0.13830574]
[1609494024670,3.12733006,29244.0,29243.0,0.13830574]
[1609494024969,0.00023006,29244.0,29243.0,0.03559434]
[1609494025476,3.12733006,29244.0,29243.0,0.03559434]
[1609494025673,3.1271,29248.0,29243.0,0.03559434]
[1609494025871,3.1271,29248.0,29243.0,0.13672588]
[1609494026071,3.1271,29249.0,29243.0,0.13672588]
[1609494026274,3.11989598,29247.0,29243.0,0.2278019]
[1609494026473,3.1271,29248.0,29243.0,0.2278019]
[1609494026671,3.12565821,29248.0,29243.0,0.2278019]
[1609494026873,0.660534,29250.0,29243.0,0.2278019]
[1609494026874,3.1199,29249.0,29243.0,0.2278019]
[1609494027376,0.660534,29250.0,29243.0,0.4278019]
[1609494027675,3.1185,29249.0,29243.0,0.26810457]
[1609494028396,3.1185,29249.0,29243.0,0.12667036]
[1609494029200,3.1185,29249.0,29243.0,0.03559434]
[1609494031604,3.1185,29249.0,29243.0,0.12667036]
[1609494032500,3.1185,29249.0,29243.0,0.03559434]
[1609494034120,3.10451599,29249.0,29243.0,0.12667036]
[1609494034324,3.1045,29248.0,29244.0,0.1]
[1609494034522,3.10170167,29248.0,29243.0,0.12667036]
[1609494034720,3.10393995,29249.0,29243.0,0.12667036]
[1609494034921,3.1017,29247.0,29243.0,0.12667036]
[1609494035425,0.00022711,29244.0,29243.0,0.26810457]
[1609494035620,0.00022711,29244.0,29243.0,0.46810457]
[1609494035821,0.00022711,29244.0,29243.0,0.26810457]
[1609494036022,0.660534,29250.0,29243.0,0.17702855]
[1609494036323,3.1011,29244.0,29243.0,0.17702855]
[1609494036523,3.1011,29245.0,29243.0,0.12667036]
[1609494036823,3.1011,29244.0,29243.0,0.03559434]
[1609494037420,3.1011,29244.0,29243.0,0.12667036]
[1609494037873,3.1011,29249.0,29243.0,0.03559434]
[1609494038373,3.1011,29244.0,29243.0,0.03559434]
[1609494038771,0.08,29248.0,29243.0,0.03559434]
[1609494039171,3.1011,29247.0,29243.0,0.03559434]
[1609494040899,3.09894598,29247.0,29243.0,0.03559434]
[1609494041300,3.099,29246.0,29243.0,0.03559434]
[1609494041803,3.099,29247.0,29243.0,0.03559434]
[1609494042005,3.099,29245.0,29243.0,0.03559434]
[1609494042402,3.099,29246.0,29243.0,0.03559434]
[1609494042605,3.099,29244.0,29243.0,0.03559434]
[1609494042807,3.099,29245.0,29243.0,0.03559434]
[1609494043008,3.099,29244.0,29243.0,0.03559434]
[1609494043306,3.099,29247.0,29243.0,0.0353564]
[1609494043731,2.26767883,29244.0,29243.0,0.0353564]
[1609494043929,3.099,29246.0,29243.0,0.0353564]
[1609494044135,0.08,29247.0,29243.0,0.03512113]
[1609494044332,2.2677,29244.0,29243.0,0.03512113]
[1609494044532,0.08,29247.0,29243.0,0.03512113]
[1609494044928,2.25882817,29244.0,29243.0,0.03512113]
[1609494045232,2.2588,29244.0,29243.0,0.03512113]
[1609494045441,2.25850528,29244.0,29243.0,0.03512113]
[1609494045630,2.2588,29246.0,29243.0,0.03512113]
[1609494045830,2.2585,29244.0,29243.0,0.03512113]
[1609494046129,2.2585,29245.0,29243.0,0.03512113]
[1609494046332,2.2585,29244.0,29243.0,0.03512113]
[1609494046730,2.2585,29246.0,29243.0,0.03512113]
[1609494046935,2.2585,29246.0,29240.0,0.31548823]
[1609494046936,2.2585,29244.0,29240.0,0.31548823]
[1609494047132,2.2585,29246.0,29240.0,0.31548823]
[1609494047332,2.2585,29246.0,29240.0,0.45692244]
[1609494047532,2.2585,29243.0,29240.0,0.45692244]
[1609494047738,2.2585,29245.0,29240.0,0.45692244]
[1609494047933,2.2585,29242.0,29240.0,0.45692244]
[1609494048333,2.2585,29245.0,29240.0,0.45692244]
[1609494049553,2.2585,29245.0,29240.0,0.38573421]
[1609494050457,2.2585,29245.0,29240.0,0.2443]
[1609494050857,2.2585,29245.0,29240.0,0.391027]
[1609494051462,2.2585,29245.0,29240.0,0.53246121]
[1609494051463,0.08,29244.0,29240.0,0.53246121]
[1609494051761,0.23814,29244.0,29240.0,0.53246121]
[1609494052462,2.2585,29243.0,29240.0,0.391027]
[1609494053295,0.08,29242.0,29240.0,0.391027]
[1609494053494,0.08,29242.0,29240.0,0.53246121]
[1609494053691,2.2585,29241.0,29240.0,0.53246121]
[1609494054093,2.9585,29241.0,29240.0,0.53246121]
[1609494054395,2.3385,29241.0,29240.0,0.53246121]
[1609494054599,2.3385,29241.0,29240.0,0.391027]
[1609494055205,3.7885,29241.0,29240.0,0.391027]
[1609494056199,2.3385,29241.0,29240.0,0.391027]
[1609494056601,4.7385,29241.0,29240.0,0.386027]
[1609494056803,2.3385,29241.0,29240.0,0.52746121]
[1609494058004,2.3385,29241.0,29240.0,0.386027]
[1609494058205,3.1385,29241.0,29240.0,0.386027]
[1609494059009,3.1385,29241.0,29240.0,0.52746121]
[1609494059306,3.1385,29241.0,29240.0,0.52723477]
[1609494059806,2.3385,29241.0,29240.0,0.52723477]
[1609494060739,3.0885,29241.0,29240.0,0.52223477]
[1609494060939,3.0885,29241.0,29240.0,0.52200902]
[1609494060940,4.3885,29241.0,29240.0,0.52200902]
[1609494061140,2.3335,29241.0,29240.0,0.52200902]
[1609494062544,2.3121,29241.0,29240.0,0.52200902]
[1609494062745,2.3081,29241.0,29240.0,0.52200902]
[1609494063141,2.3071,29241.0,29240.0,0.52200902]
[1609494064443,2.3071,29241.0,29240.0,0.38057481]
[1609494065048,2.2521,29241.0,29240.0,0.38057481]
[1609494065245,2.2521,29241.0,29240.0,0.52200902]
[1609494065445,2.2411,29241.0,29240.0,0.52200902]
[1609494065649,2.2411,29241.0,29240.0,0.52105802]
[1609494065850,2.2391,29241.0,29240.0,0.52105802]
[1609494067459,2.2111,29241.0,29240.0,0.52105802]
[1609494068038,2.2061,29241.0,29240.0,0.52105802]
[1609494068437,2.2051,29241.0,29240.0,0.52105802]
[1609494069238,2.2051,29241.0,29240.0,0.52082179]
[1609494070074,0.08,29241.0,29240.0,0.52082179]
[1609494070379,0.039,29241.0,29240.0,0.52082179]
[1609494070579,0.031,29241.0,29240.0,0.52082179]
[1609494070777,0.029,29241.0,29240.0,0.52082179]
[1609494071275,0.0286,29241.0,29240.0,0.52082179]
[1609494073276,0.0286,29241.0,29240.0,0.72082179]
[1609494073504,0.0286,29241.0,29240.0,0.65582179]
[1609494075608,0.8286,29241.0,29240.0,0.65082179]
[1609494075808,0.0286,29241.0,29240.0,0.65082179]
[1609494076107,1.8508,29242.0,29240.0,0.65082179]
[1609494076311,1.8458,29242.0,29240.0,0.65082179]
[1609494076507,1.8348,29242.0,29240.0,0.65082179]
[1609494076709,1.8328,29242.0,29240.0,0.65082179]
[1609494077409,1.0,29242.0,29240.0,0.65082179]
[1609494077707,1.0,29242.0,29240.0,0.51582179]
[1609494079529,1.0,29242.0,29240.0,0.61582179]
[1609494079730,1.0,29242.0,29240.0,0.47438758]
[1609494080830,1.0,29242.0,29240.0,0.61582179]
[1609494081032,1.0,29242.0,29241.0,0.195]
[1609494081935,1.0,29242.0,29240.0,0.61582179]
[1609494082136,1.0,29242.0,29240.0,0.47438758]
[1609494082737,1.0,29242.0,29241.0,0.48469435]
[1609494082999,0.8772,29243.0,29240.0,0.67438758]
[1609494083207,0.8772,29243.0,29242.0,0.4848564]
[1609494083999,0.3923436,29242.0,29240.0,0.51582179]
[1609494084200,0.3865436,29242.0,29240.0,0.51582179]
[1609494084398,0.3865436,29242.0,29240.0,0.37438758]
[1609494084597,0.3853436,29242.0,29240.0,0.37438758]
[1609494084847,0.8772,29243.0,29240.0,0.37438758]
[1609494085546,0.8772,29243.0,29240.0,0.47438758]
[1609494085742,0.8772,29243.0,29240.0,0.67438758]
[1609494087342,0.8772,29243.0,29240.0,0.81582179]
[1609494088348,0.8772,29243.0,29240.0,0.77438758]
[1609494088555,0.8752,29243.0,29240.0,0.77438758]
[1609494090257,0.8752,29243.0,29240.0,0.67438758]
[1609494092562,1.8752,29243.0,29240.0,0.47438758]
[1609494093359,1.93244,29243.0,29240.0,0.47438758]
[1609494094810,1.8752,29243.0,29240.0,0.47438758]
[1609494097965,1.8752,29243.0,29240.0,0.61582174]
[1609494100666,1.8752,29243.0,29241.0,0.28143416]
[1609494100868,1.8752,29243.0,29242.0,0.14]
[1609494101266,1.8752,29243.0,29241.0,0.24143416]
[1609494105284,1.8752,29243.0,29241.0,0.23643416]
[1609494107290,1.87337768,29243.0,29241.0,0.23643416]
[1609494107489,1.86737768,29243.0,29241.0,0.23643416]
[1609494107688,1.86637768,29243.0,29241.0,0.23643416]
[1609494109092,3.53625768,29243.0,29241.0,0.095]
[1609494109317,3.53625768,29243.0,29240.0,0.61582174]
[1609494111217,3.53625768,29243.0,29240.0,0.47438758]
[1609494111417,4.44518166,29243.0,29240.0,0.47438758]
[1609494111616,4.44018166,29243.0,29240.0,0.47438758]
[1609494111819,3.65,29241.0,29240.0,0.47438758]
[1609494112521,1.5,29241.0,29240.0,0.47438758]
[1609494112720,3.0,29241.0,29240.0,0.47438758]
[1609494113165,3.90392398,29241.0,29240.0,0.37438758]
[1609494113564,8.05392398,29241.0,29240.0,0.37438758]
[1609494113963,9.05392398,29241.0,29240.0,0.37438758]
[1609494114368,4.90392398,29241.0,29240.0,0.15508758]
[1609494114566,6.50392398,29241.0,29240.0,0.15508758]
[1609494115404,7.65392398,29241.0,29240.0,0.15508758]
[1609494115904,6.50392398,29241.0,29240.0,0.15508758]
[1609494116407,7.75392398,29241.0,29240.0,0.15508758]
[1609494117406,6.50392398,29241.0,29240.0,0.15508758]
[1609494118629,7.55392398,29241.0,29240.0,0.15508758]
[1609494119031,6.50392398,29241.0,29240.0,0.15508758]
[1609494119233,4.90392398,29241.0,29240.0,0.15508758]
[1609494119431,7.20392398,29241.0,29240.0,0.15508758]
[1609494120436,6.35392398,29241.0,29240.0,0.15508758]
[1609494120635,4.90392398,29241.0,29240.0,0.15508758]
[1609494121434,5.70392398,29241.0,29240.0,0.15508758]
[1609494122336,7.30392398,29241.0,29240.0,0.15508758]
[1609494122837,4.0,29241.0,29240.0,0.15508758]
[1609494123837,4.90392398,29241.0,29240.0,0.15508758]
[1609494125359,4.0,29241.0,29240.0,0.15508758]
[1609494125857,4.90392398,29241.0,29240.0,0.15508758]
[1609494126960,4.85392398,29241.0,29240.0,0.15508758]
[1609494127362,3.95,29241.0,29240.0,0.15508758]
[1609494127560,4.85392398,29241.0,29240.0,0.15508758]
[1609494127860,3.95,29241.0,29240.0,0.15508758]
[1609494129209,7.4,29241.0,29240.0,0.15008758]
[1609494129409,3.95,29241.0,29240.0,0.15008758]
[1609494130950,4.85392398,29241.0,29240.0,0.15008758]
[1609494131854,4.96906398,29241.0,29240.0,0.15008758]
[1609494132253,7.06906398,29241.0,29240.0,0.15008758]
[1609494132453,4.96906398,29241.0,29240.0,0.15008758]
[1609494132954,9.31906398,29241.0,29240.0,0.12508758]
[1609494133775,4.96906398,29241.0,29240.0,0.12508758]
[1609494134172,6.36906398,29241.0,29240.0,0.12508758]
[1609494135275,7.66906398,29241.0,29240.0,0.12508758]
[1609494136188,8.96906398,29241.0,29240.0,0.12508758]
[1609494136579,7.66906398,29241.0,29240.0,0.12508758]
[1609494136779,7.66906398,29241.0,29240.0,0.45037455]
[1609494137281,7.71906398,29241.0,29240.0,0.45037455]
[1609494137492,7.71906398,29241.0,29240.0,0.12508758]
[1609494137780,6.36906398,29241.0,29240.0,0.12508758]
[1609494137981,6.25392398,29241.0,29240.0,0.45040649]
[1609494138182,7.30392398,29241.0,29240.0,0.45040649]
[1609494138783,7.43131398,29241.0,29239.0,3.11e-06]
[1609494138986,2.09684442,29240.0,29236.0,0.00020311]
[1609494139187,2.59743209,29239.0,29236.0,0.00020311]
[1609494139399,2.306,29237.0,29236.0,0.00020311]
[1609494139600,8.75355398,29237.0,29236.0,0.00020311]
[1609494139797,8.75355398,29237.0,29236.0,3.11e-06]
[1609494139996,9.75355398,29237.0,29236.0,3.11e-06]
[1609494140194,10.50355398,29237.0,29236.0,3.11e-06]
[1609494141209,8.25392398,29236.0,29235.0,1.0004]
[1609494141505,9.25392398,29236.0,29235.0,1.0004]
[1609494142008,9.25392398,29236.0,29235.0,0.93895]
[1609494142203,9.25392398,29236.0,29235.0,0.93855]
[1609494143163,9.25392398,29236.0,29234.0,0.90445218]
[1609494143364,1.09374872,29235.0,29229.0,0.0008]
[1609494143570,1.09374872,29235.0,29228.0,0.0002]
[1609494143571,5.85,29233.0,29228.0,0.0002]
[1609494143870,3.03799096,29232.0,29226.0,0.14203416]
[1609494144065,1.8640893,29230.0,29226.0,0.14203416]
[1609494144268,5.85,29227.0,29219.0,0.0008]
[1609494144572,1.5,29225.0,29219.0,0.0008]
[1609494144765,1.27311322,29224.0,29219.0,0.0008]
[1609494145003,1.27311322,29224.0,29217.0,0.5136]
[1609494145004,7.35,29222.0,29217.0,0.5136]
[1609494145203,0.3640893,29220.0,29217.0,0.5136]
[1609494145397,6.85,29218.0,29217.0,0.5136]
[1609494145599,1.5560793,29218.0,29217.0,0.5136]
[1609494145896,5.14199,29218.0,29217.0,0.5086]
[1609494146294,5.14199,29218.0,29217.0,0.4836]
[1609494146894,5.8560793,29218.0,29217.0,0.4836]
[1609494147402,1.0,29218.0,29217.0,0.57967602]
[1609494147599,1.0,29221.0,29217.0,0.87967602]
[1609494147900,1.1133893,29226.0,29218.0,0.29607602]
[1609494148099,1.1133893,29226.0,29217.0,0.5836]